{"text_format":"1","workbook":"xlsx","n_sheets":1,"sheets":["RES"],"not_rendered":{"charts":0,"images":0,"macros":1,"external_links":0,"defined_names":58,"comments":0,"pivot_tables":0},"unopened":[],"bounds":{"document_bytes":16777216,"sheet_cells":100000,"rows_first":2000,"rows_last":500,"rows_between":2000,"halvings":0,"cell_chars":16384,"cell_head_chars":4096},"cells_cut":0,"cells_raw":0,"read":"whole","date_system":"1900"}

{"sheet":"RES","index":0,"n_rows":65,"n_cols":22,"rows_kept":65,"cut":false,"hidden":false,"merged":[]}
[null,4616]
[]
[]
[]
["Menu command"]
["Label","Command name","Macro name","Short cut (mac only)","Status bar","Help topic"]
["MenuRef","Analiza danyc&h...","fDialog",null,"Wybieranie procedury analizy danych","xlmain10.chm!1780"]
[]
["Ribbon command"]
["Analiza danych"]
[]
["Function table"]
["Labels","VBA Name","Module","Procedure","Type text","Function text","Argument text","Macro type","Category","Shortcut text","Help topic","Help text","Arg1","Arg2","Arg3","Arg4","Arg5","Arg6","Arg7","Arg8","Arg9","Arg10"]
["ANOVA1","Anova1",null,"fnAnova1","AUUQQQ#","ANOVA1","zakwej,zakwyj,zgrup,etykiety,alfa",2,{"$f":"msg.Stat","v":"Statystyczne"},null,"XLMACRO.CHM!3457","Wykonuje jednoczynnikową analizę wariancji"]
["ANOVA2","Anova2",null,"fnAnova2","AUUQQ#","ANOVA2","zakwej,zakwyj,wiersze_przyk,alfa",2,{"$f":"msg.Stat","v":"Statystyczne"},null,"XLMACRO.CHM!3459","Wykonuje dwuczynnikową analizę wariancji z powtórzeniami"]
["ANOVA3","Anova3",null,"fnAnova3","AUUQQ#","ANOVA3","zakwej,zakwyj,etykiety,alfa",2,{"$f":"msg.Stat","v":"Statystyczne"},null,"XLMACRO.CHM!3461","Wykonuje dwuczynnikową analizę wariancji bez powtórzeń"]
["DESCR","Descr",null,"fnDescr","AUUQQQQQQ#","DESCR","zakwej,zakwyj,zgrup,etykiety,podsum,ds_duże,ds_małe,ufn",2,{"$f":"msg.Stat","v":"Statystyczne"},null,"XLMACRO.CHM!3463","Generuje statystyki opisowe dla danych z zakresu wejściowego"]
["EXPON","Expon",null,"fnExpon","AUUQQQQ#","EXPON","zakwej,zakwyj,damp,błdstd,wykres,etykiety",2,{"$f":"msg.Stat","v":"Statystyczne"},null,"XLMACRO.CHM!3465","Przewiduje wartość w oparciu o prognozę z wcześniejszego okresu, z poprawką uwzględniającą błąd w poprzednim okresie"]
["FOURIER","Fourier",null,"fnFourier","AUUQQ#","FOURIER","zakwej,zakwyj,odwrot,etykiety",2,{"$f":"msg.Eng","v":"Inżynierskie"},null,"XLMACRO.CHM!3467","Wykonuje szybką transformatę Fouriera (FFT)"]
["FTESTV","Ftestv",null,"fnFtestV","AUUUQQ#","FTESTV","zakwej1,zakwej2,zakwyj,etykiety,alfa",2,{"$f":"msg.Stat","v":"Statystyczne"},null,"XLMACRO.CHM!3469","Wykonuje test F z dwiema próbami"]
["HISTOGRAM","Histogram",null,"fnHistogram","AUUUQQQQ#","HISTOGRAM","zakwej,zakwyj,zakres,pareto,chartc,chart,etykiety",2,"Statystyczne",null,"XLMACRO.CHM!3471","Oblicza indywidualne oraz łączne wartości procentowe dla zakresu wejściowego oraz odpowiadającego mu zakresu danych (koszyka danych)"]
["MCORREL","Mcorrel",null,"fnMCorrel","AUUQQ#","MCORREL","zakwej,zakwyj,zgrup,etykiety",2,"Statystyczne",null,"XLMACRO.CHM!3473","Zwraca macierz korelacji będącej miernikiem korelacji pomiędzy dwoma lub więcej zbiorami danych"]
["MCOVAR","Mcovar",null,"fnMCovar","AUUQQ#","MCOVAR","zakwej,zakwyj,zgrup,etykiety",2,"Statystyczne",null,"XLMACRO.CHM!3475","Zwraca macierz kowariancji będącej miernikiem kowariancji pomiędzy dwoma lub więcej zbiorami danych"]
["MOVEAVG","Moveavg",null,"fnMoveAvg","AUUQQQQ#","MOVEAVG","zakwej,zakwyj,interval,stderrs,chart,etykiety",2,"Statystyczne",null,"XLMACRO.CHM!3477","Podaje wartości dla okresu prognozy w oparciu o średnią wartość zmiennej przez określoną liczbę poprzedzających okresów"]
["PTTESTM","Pttestm",null,"fnTtestM","AUUUQQQ#","PTTESTM","zakwej1,zakwej2,zakwyj,etykiety,alfa,różnica",2,"Statystyczne",null,"XLMACRO.CHM!3479","Wykonuje test t Studenta par skojarzonych z dwiema próbami"]
["PTTESTV","Pttestv",null,"fnTtestUeq","AUUUQQQ#","PTTESTV","zakwej1,zakwej2,zakwyj,etykiety,alfa,różnica",2,"Statystyczne",null,"XLMACRO.CHM!3481","Wykonuje test t Studenta z dwiema próbami, zakładający nierówne wariancje"]
["TTESTM","Ttestm",null,"fnTtestEq","AUUUQQQ#","TTESTM","zakwej1,zakwej2,zakwyj,etykiety,alfa,różnica",2,"Statystyczne",null,"XLMACRO.CHM!3491","Wykonuje test t Studenta z dwiema próbami dla średniej, zakładający równe wariancje"]
["ZTESTM","Ztestm",null,"fnZtestM","AUUUQQQQQ#","ZTESTM","zakwej1,zakwej2,zakwyj,etykiety,alfa,różnica",2,"Statystyczne",null,"XLMACRO.CHM!3493","Wykonuje test z z dwiema próbami dla średnich, przy założeniu, że znane są wariancje próbek"]
["ANOVA1?","Anova1Q",null,"fnAnova1Q","AUUQQQ#","ANOVA1?","zakwej,zakwyj,zgrup,etykiety,alfa",2,"Statystyczne",null,"XLMACRO.CHM!3458","Wykonuje jednoczynnikową analizę wariancji"]
["ANOVA2?","Anova2Q",null,"fnAnova2Q","AUUQQ#","ANOVA2?","zakwej,zakwyj,wiersze_prz,alfa",2,"Statystyczne",null,"XLMACRO.CHM!3460","Wykonuje dwuczynnikową analizę wariancji z powtórzeniami"]
["ANOVA3?","Anova3Q",null,"fnAnova3Q","AUUQQ#","ANOVA3?","zakwej,zakwyj,etykiety,alfa",2,"Statystyczne",null,"XLMACRO.CHM!3462","Wykonuje dwuczynnikową analizę wariancji bez powtórzeń"]
["DESCR?","DescrQ",null,"fnDescrQ","AUUQQQQQQ#","DESCR?","zakwej,zakwyj,zgrup,etykiety,podsumowanie,ds_duże,ds_małe,ufność",2,"Statystyczne",null,"XLMACRO.CHM!3464","Generuje statystyki opisowe dla danych z zakresu wejściowego"]
["EXPON?","ExponQ",null,"fnExponQ","AUUQQQQ#","EXPON?","zakwej,zakwyj,damp,błdstd,wykres,etykiety",2,"Statystyczne",null,"XLMACRO.CHM!3466","Przewiduje wartość w oparciu o prognozę z wcześniejszego okresu, z poprawką uwzględniającą błąd w poprzednim okresie"]
["FOURIER?","FourierQ",null,"fnFourierQ","AUUQQ#","FOURIER?","zakwej,zakwyj,odwrot,etykiety",2,{"$f":"msg.Eng","v":"Inżynierskie"},null,"XLMACRO.CHM!3468","Wykonuje szybką transformatę Fouriera (FFT)"]
["FTESTV?","FtestvQ",null,"fnFtestVQ","AUUUQQ#","FTESTV?","zakwej1,zakwej2,zakwyj,etykiety,alfa",2,{"$f":"msg.Stat","v":"Statystyczne"},null,"XLMACRO.CHM!3470","Wykonuje test F z dwiema próbami"]
["HISTOGRAM?","HistogramQ",null,"fnHistogramQ","AUUUQQQQ#","HISTOGRAM?","zakwej,zakwyj,zakkosz,pareto,chartc,wykres,etykiety",2,"Statystyczne",null,"XLMACRO.CHM!3472","Oblicza indywidualne oraz łączne wartości procentowe dla zakresu wejściowego oraz odpowiadającego mu zakresu danych (koszyka danych)"]
["MCORREL?","McorrelQ",null,"fnMCorrelQ","AUUQQ#","MCORREL?","zakwej,zakwyj,zgrup,etykiety",2,"Statystyczne",null,"XLMACRO.CHM!3474","Zwraca macierz korelacji będącej miernikiem korelacji pomiędzy dwoma lub więcej zbiorami danych"]
["MCOVAR?","McovarQ",null,"fnMCovarQ","AUUQQ#","MCOVAR?","zakwej,zakwyj,zgrup,etykiety",2,"Statystyczne",null,"XLMACRO.CHM!3476","Zwraca macierz kowariancji będącej miernikiem kowariancji pomiędzy dwoma lub więcej zbiorami danych"]
["MOVEAVG?","MoveavgQ",null,"fnMoveAvgQ","AUUQQQQ#","MOVEAVG?","zakwej,zakwyj,przedział,błdstd,wykres,etykiety",2,"Statystyczne",null,"XLMACRO.CHM!3478","Podaje wartości dla okresu prognozy w oparciu o średnią wartość zmiennej przez określoną liczbę poprzedzających okresów"]
["PTTESTM?","PttestmQ",null,"fnTtestMQ","AUUUQQQ#","PTTESTM?","zakwej1,zakwej2,zakwyj,etykiety,alfa,różnica",2,"Statystyczne",null,"XLMACRO.CHM!3480","Wykonuje test t Studenta par skojarzonych z dwiema próbami"]
["PTTESTV?","PttestvQ",null,"fnTtestUeqQ","AUUUQQQ#","PTTESTV?","zakwej1,zakwej2,zakwyj,etykiety,alfa,różnica",2,"Statystyczne",null,"XLMACRO.CHM!3482","Wykonuje test t Studenta z dwiema próbami, zakładający nierówne wariancje"]
["TTESTM?","TtestmQ",null,"fnTtestEqQ","AUUUQQQ#","TTESTM?","zakwej1,zakwej2,zakwyj,etykiety,alfa,różnica",2,"Statystyczne",null,"XLMACRO.CHM!3492","Wykonuje test t Studenta z dwiema próbami dla średniej, zakładający równe wariancje"]
["ZTESTM?","ZtestmQ",null,"fnZtestMQ","AUUUQQQQQ#","ZTESTM?","zakwej1,zakwej2,zakwyj,etykiety,alfa,różnica",2,"Statystyczne",null,"XLMACRO.CHM!3494","Wykonuje test z z dwiema próbami dla średnich, przy założeniu, że znane są wariancje próbek"]
["RANDOM","Random",null,"fnRandom","AUQQQQUQQQQ#","RANDOM","zakwyj,zmienne,punkty,rozkład,warinic,arglos1,arglos2,arglos3,arglos4,arglos5)",2,"Statystyczne",null,"XLMACRO.CHM!3483","Wypełnia zakres za pomocą liczb pseudolosowych wygenerowanych na podstawie jednego z kilku dostępnych rozkładów"]
["RANKPERC","Rankperc",null,"fnRankPerc","AUUQQ#","RANKPERC","zakwej,zakwyj,zgrup,etykiety",2,"Statystyczne",null,"XLMACRO.CHM!3485","Zwraca tabelę zawierającą rangę porządkową i procentową każdej wartości w zbiorze danych"]
["REGRESS","Regress",null,"fnRegress","AUUQQQUQQQQUQU#","REGRESS","zakwejy,zakwejx,stała,etykiety,ufność,zakwyjs,resztowe,resztowes,wykresr,wykresl,zakwyjr,wykress,pzakwyj",2,"Statystyczne",null,"XLMACRO.CHM!3487","Wykonuje analizę regresji liniowej"]
["SAMPLE","Sample",null,"fnSample","AUUQQQ#","SAMPLE","zakwej,zakwyj,metoda,szybkość,etykiety",2,"Statystyczne",null,"XLMACRO.CHM!3489","Próbkuje dane"]
["RANDOM?","RandomQ",null,"fnRandomQ","AUQQQQUQQQQ#","RANDOM?","zakwyj,zmienne,punkty,rozkład,warini,arglos1,arglos2,arglos3,arglos4,arglos5)",2,"Statystyczne",null,"XLMACRO.CHM!3484","Wypełnia zakres za pomocą liczb pseudolosowych wygenerowanych na podstawie jednego z kilku dostępnych rozkładów"]
["RANKPERC?","RankpercQ",null,"fnRankPercQ","AUUQQ#","RANKPERC?","zakwej,zakwyj,zgrup,etykiety",2,"Statystyczne",null,"XLMACRO.CHM!3486","Zwraca tabelę zawierającą rangę porządkową i procentową każdej wartości w zbiorze danych"]
["REGRESS?","RegressQ",null,"fnRegressQ","AUUQQQUQQQQUQU#","REGRESS?","zakwejy,zakwejx,stała,etykiety,ufność,zakwyjs,resztowe,resztowes,wykresr,wykresl,zakwyr,wykresn,zakwyjp",2,"Statystyczne",null,"XLMACRO.CHM!3488","Wykonuje analizę regresji liniowej"]
["SAMPLE?","SampleQ",null,"fnSampleQ","AUUQQQ#","SAMPLE?","zakwej,zakwyj,metod,szybkość,etykiety",2,"Statystyczne",null,"XLMACRO.CHM!3490","Próbkuje dane"]
[]
[]
["String table"]
["Name","Text","Comments"]
["__LongName","'"]
["MenuItem1","Narzędzia","Excel5"]
["MenuItem2","Opcje","Excel4"]
["msg.Eng","Inżynierskie"]
["msg.Math","Matematyczne"]
["msg.Time","Daty i czasu"]
["msg.Fin","Finansowe"]
["msg.Stat","Statystyczne"]
["msg.Info","Informacyjne"]
["SummaryText","test"]